Cogmind - Beta 11.1 --- EXPLORER MODE // 2022.05.27 @ 12:46:54 Player: Grimbling Result: Destroyed by 8R-AWN with 8R-AWN's Boregun Performance ------------- Evolutions (0) 0 Regions Visited (3) 600 Robots Destroyed (7) 35 Value Destroyed (182) 182 Prototype IDs (5) 100 Alien Tech Used (0) 0 Bonus (-299) -299 TOTAL SCORE: 618 Bonus ------- Aligned with FarCom 300 Friendly Fire -599 Cogmind --------- Core Integrity 0/250 Matter 258/300 Energy 100/100 System Corruption 0% Temperature Hot (254) Movement Walking (120) Location -10/Exiles Parts ------- > --- POWER (1) -------- (None) > --- PROPULSION (2) --- Aluminum Leg Aluminum Leg > --- UTILITY (2) ------ (None) > --- WEAPON (3) ------- (None) > --- INVENTORY (5) ---- Light Ion Engine Peak State ------------ > --- POWER ------------ Light Ion Engine > --- PROPULSION ------- Light Treads Light Treads > --- UTILITY ---------- Medium Storage Unit 0b10 Alert Chip > --- WEAPON ----------- Particle Cannon Particle Cannon Guided Plasma Cannon > --- INVENTORY -------- Ion Engine Aluminum Leg Aluminum Leg Targeting Computer Targeting Computer Weapon Shielding Light Armor Plating Particle Cannon Particle Cannon Assault Rifle [Rating: 23] Favorites ----------- Power Light Ion Engine Engine Light Ion Engine Propulsion Light Treads Treads Light Treads Leg Aluminum Leg Utility Medium Storage Unit Device Heat Sink Storage Medium Storage Unit Processor 0b10 Alert Chip Protection Weapon Shielding Weapon Particle Cannon Energy Gun Small Laser Energy Cannon Particle Cannon Ballistic Gun Light Assault Rifle Build | -11 -10 -10 -10 ------- Run | Scr Mat Min Exi Slots Evolved 1 | . 1 . . Power . | . . . . Propulsion . | . . . . Utility . | . . . . Weapon 1 | . 1 . . Parts Attached 17 | 1 7 . 9 Power 2 | . 1 . 1 Engine 2 | . 1 . 1 Core . | . . . . Reactor . | . . . . Propulsion 4 | . 2 . 2 Treads 2 | . 2 . . Leg 2 | . . . 2 Wheel . | . . . . Hover . | . . . . Flight . | . . . . Utility 5 | . 1 . 4 Device 2 | . 1 . 1 Storage . | . . . . Processor 1 | . . . 1 Hackware . | . . . . Protection 2 | . . . 2 Artifact . | . . . . Weapon 6 | 1 3 . 2 Energy Gun . | . . . . Energy Cannon 5 | . 3 . 2 Ballistic Gun 1 | 1 . . . Ballistic Cannon . | . . . . Launcher . | . . . . Special Weapon . | . . . . Impact Weapon . | . . . . Slashing Weapon . | . . . . Piercing Weapon . | . . . . Special Melee Weapon . | . . . . Unidentified Prototypes 2 | . . . 2 Parts Lost 10 | . . . 10 Power 1 | . . . 1 Propulsion 2 | . . . 2 Utility 3 | . . . 3 Weapon 4 | . . . 4 Highest Loss Streak 10 | . . . 10 To Critical Strikes 4 | . . . 4 Average Slot Usage (%) 96 | . 94 100 96 Engine 12 | . 12 12 12 Treads 19 | . 8 25 24 Leg 4 | . 16 . . Device 10 | . 7 12 10 Storage 10 | . 12 12 9 Protection 2 | . 4 . 2 Energy Cannon 31 | . 20 37 36 Ballistic Gun 3 | . 11 . . Naked Turns . | . . . . Heaviest Build 32 | 17 26 26 32 Greatest Support 40 | 20 40 40 40 Greatest Overweight (x) 1 | . 1 . . Average Overweight (x) . | . . . . Largest Inventory Capacity 10 | 10 10 10 10 Average Capacity 9 | 10 10 10 8 Most Carried 10 | 8 10 9 10 Average Carried 8 | 7 7 9 8 Final Capacity 10 | 10 10 10 5 Final Carried 9 | 7 9 9 1 Class Distribution -------------------- 71% | Hacker-Gunner 28% | Hacker-Mutant Dominant Class ---------------- Hacker-Gunner | -10/Materials Hacker-Gunner | -10/Mines Hacker-Gunner | -10/Exiles Resources | -11 -10 -10 -10 ----------- Run | Scr Mat Min Exi Matter Collected 328 | 200 108 20 . Remotely . | . . . . Salvage Created 285 | . 115 97 73 Parts 21 | . 7 1 13 Haulers Intercepted . | . . . . Recyclers Shooed . | . . . . Parts Field Recycled . | . . . . Retrieved Matter . | . . . . Parts Self-Destructed . | . . . . Prevented . | . . . . Kills | -11 -10 -10 -10 ------- Run | Scr Mat Min Exi Combat Hostiles Destroyed 10 | . 4 2 4 Melee 1 | . . . 1 Guns 2 | . 2 . . Cannons 7 | . 2 2 3 Classes Destroyed 3 | . 2 . 1 Swarmer 2 | . 2 . . Grunt 4 | . 2 2 . Assembled 4 | . . . 4 Best Kill Streak 4 | . 2 2 4 Combat Bots Only 4 | . 2 2 4 Max Kills in Single Turn 1 | . 1 1 1 Gunslinging . | . . . . Exploded . | . . . . Melee 1 | . . . 1 Uniques/NPCs Destroyed 1 | . . . 1 EX-BIN (-10/Exiles) Combat | -11 -10 -10 -10 -------- Run | Scr Mat Min Exi Damage Taken 1286 | . 130 42 1114 Core 254 | . 15 14 225 Absorbed by Shields . | . . . . Redirected to Shielding 53 | . 11 . 42 Core Remaining (%) 100 | 100 . . . Volleys Fired 40 | . 15 3 22 Largest 3 | . 3 3 1 Hottest 204 | . 204 204 120 Shots Fired 63 | . 32 9 22 Gun 26 | . 26 . . Cannon 37 | . 6 9 22 Launcher . | . . . . Special . | . . . . Kinetic 26 | . 26 . . Thermal 37 | . 6 9 22 Explosive . | . . . . Electromagnetic . | . . . . Robot Hit Streak 40 | . 12 18 40 Robot Miss Streak 1 | . 1 . . Penetration Max . | . . . . Secondary Targets 1 | . 1 . . Max Gunslinging Chain 1 | . 1 . . Shots Hit Robots 52 | . 24 6 22 Core Hits 22 | . 8 3 11 Critical Kills . | . . . . Critical Parts Destroyed 1 | . 1 . . Critical Strikes 1 | . 1 . . Destroy 1 | . 1 . . Melee Attacks . | . . . . Impact . | . . . . Slashing . | . . . . Piercing . | . . . . Sneak Attacks . | . . . . Combat Hostiles . | . . . . Follow-up Attacks . | . . . . Damage Inflicted 904 | . 264 125 515 Guns 223 | . 223 . . Cannons 658 | . 41 123 494 Explosions . | . . . . Melee . | . . . . Ramming 23 | . . 2 21 Kinetic 223 | . 223 . . Thermal 658 | . 41 123 494 Explosive . | . . . . Electromagnetic . | . . . . Impact . | . . . . Slashing . | . . . . Piercing . | . . . . Highest Corruption . | . . . . Average Corruption . | . . . . Corruption Purged . | . . . . Corruption Blocked . | . . . . Overload Shots . | . . . . Overflow Damage 55 | . . 11 44 Projectiles 55 | . . 11 44 Explosions . | . . . . Melee . | . . . . Knockbacks . | . . . . Impact . | . . . . Kinetic . | . . . . Secondary . | . . . . Self-Inflicted Damage . | . . . . Shots . | . . . . Rammed 12 | . . 1 11 Targets Rammed 13 | . . 1 12 Kicked . | . . . . Crushed 1 | . . . 1 Highest Temperature 352 | . 228 279 352 Average Temperature 150 | . 55 160 178 Received Heat Transfer 218 | . 96 42 80 Effects 4 | . . . 4 Shutdowns 1 | . . . 1 Interference 2 | . . . 2 Matter Decay 1 | . . . 1 Siege Activations . | . . . . Robots Corrupted . | . . . . Combat Hostiles . | . . . . Parts Fried . | . . . . Impact Corruptions . | . . . . Robots Melted . | . . . . Combat Hostiles . | . . . . Parts Melted 3 | . . 1 2 Heat Transferred 1472 | . 74 222 1176 Parts Sabotaged . | . . . . Parts Stolen . | . . . . Parts Stripped . | . . . . Power Chain Reactions . | . . . . Missiles Intercepted . | . . . . Alert | -11 -10 -10 -10 ------- Run | Scr Mat Min Exi Peak Influence 133 | . 133 86 . Initial 36 | . . 36 . Average 61 | . 63 60 . Maximum Alert Level . | . . . . Low Security (%) 100 | 100 100 100 . Level 1 . | . . . . Level 2 . | . . . . Level 3 . | . . . . Level 4 . | . . . . Level 5 . | . . . . High Security . | . . . . Max Security . | . . . . Squads Dispatched . | . . . . Investigation . | . . . . Extermination . | . . . . Reinforcement . | . . . . Assault . | . . . . Garrison . | . . . . Intercept . | . . . . Searches Triggered . | . . . . Construction Impeded . | . . . . Haulers Reinforced . | . . . . Active Scanning Responses . | . . . . Cargo Convoy Interrupts . | . . . . Stealth | -11 -10 -10 -10 --------- Run | Scr Mat Min Exi Distress Signals . | . . . . Communications Jammed . | . . . . Distress Signals . | . . . . Times Spotted 15 | . 5 2 8 Peak Tracking Total 9 | . 2 2 9 Tactical Retreats . | . . . . Traps | -11 -10 -10 -10 ------- Run | Scr Mat Min Exi Traps Triggered 1 | . 1 . . Indirectly . | . . . . Trap Hack Attempts . | . . . . Triggered . | . . . . Disarmed . | . . . . Reprogrammed . | . . . . Reused . | . . . . Traps Extracted . | . . . . Installed . | . . . . Triggered . | . . . . Machines | -11 -10 -10 -10 ---------- Run | Scr Mat Min Exi Machines Disabled . | . . . . Max in Single Turn . | . . . . Machines Sabotaged . | . . . . Garrisons Compromised . | . . . . Overloaded Fab Kills . | . . . . Hacking | -11 -10 -10 -10 --------- Run | Scr Mat Min Exi Machines Accessed 2 | . 2 . . Terminals 2 | . 2 . . Fabricators . | . . . . Repair Stations . | . . . . Recycling Units . | . . . . Scanalyzers . | . . . . Garrison Access . | . . . . Total Hacks 3 | . 3 . . Successful 3 | . 3 . . Failed . | . . . . Catastrophic . | . . . . Database Lockouts . | . . . . Manual 1 | . . . 1 Terminals 3 | . 3 . . Fabricators . | . . . . Repair Stations . | . . . . Recycling Units . | . . . . Scanalyzers . | . . . . Garrison Access . | . . . . Terminal Hacks 3 | . 3 . . Prototype ID Bank 2 | . 2 . . Zone Layout 1 | . 1 . . Fabricator Hacks . | . . . . Repair Station Hacks . | . . . . Recycling Unit Hacks . | . . . . Scanalyzer . | . . . . Garrison Access Hacks . | . . . . Unauthorized Hacks . | . . . . Terminals . | . . . . Fabricators . | . . . . Repair Stations . | . . . . Recycling Units . | . . . . Scanalyzers . | . . . . Garrison Access . | . . . . Data Cores Recovered . | . . . . Used . | . . . . Hacking Detections 1 | . 1 . . Full Trace Events . | . . . . Feedback Events . | . . . . Feedback Blocked . | . . . . Robot Schematics Acquired . | . . . . Robots Built . | . . . . Authchips . | . . . . Time . | . . . . Total Robot Build Rating . | . . . . Part Schematics Acquired . | . . . . Parts Built . | . . . . Authchips . | . . . . Time . | . . . . Total Part Build Rating . | . . . . Parts Repaired . | . . . . Time . | . . . . Parts Recycled . | . . . . Recycled Matter . | . . . . Retrieved Matter . | . . . . Retrieved Components . | . . . . Parts Scanalyzed . | . . . . Part Schematics Acquired . | . . . . Parts Damaged . | . . . . Bothacking | -11 -10 -10 -10 ------------ Run | Scr Mat Min Exi Used RIF Installer . | . . . . Robots Hacked . | . . . . Non-combat . | . . . . Combat . | . . . . Robot Hacks Applied . | . . . . Relay Couplers Released . | . . . . Fabnet Peak Effective % . | . . . . Robots Rewired . | . . . . Allies Hacked . | . . . . Hacks Repelled . | . . . . Allies | -11 -10 -10 -10 -------- Run | Scr Mat Min Exi Total Allies . | . . . . Largest Group . | . . . . Highest-Rated Group . | . . . . Highest-Rated Ally . | . . . . Total Orders . | . . . . Ally Attacks . | . . . . Total Damage . | . . . . Kills . | . . . . Allies Corrupted . | . . . . Allies Melted . | . . . . Intel | -11 -10 -10 -10 ------- Run | Scr Mat Min Exi Robot Analysis Total . | . . . . Derelict Logs Recovered 2 | . . 2 . Drone Launches . | . . . . Drone Recoveries . | . . . . Exploration | -11 -10 -10 -10 ------------- Run | Scr Mat Min Exi Turns Passed 1361 | 13 387 296 665 Spaces Moved 772 | 10 227 177 358 Core . | . . . . Treads 608 | . 74 177 357 Legs 164 | 10 153 . 1 Wheels . | . . . . Hover . | . . . . Flight . | . . . . Fastest Speed 120 | 120 120 160 120 Average Speed 155 | 120 145 160 159 Slowest Speed 190 | 120 190 160 160 Overloaded Moves . | . . . . Propulsion Burnouts . | . . . . Robots Hopped . | . . . . Cave-ins Triggered . | . . . . Exploration Rate (%) 35 | 2 36 42 61 Regions Visited 3 Branch Regions 2 Pre-discovered Areas 1 | . . 1 . Known Exits Taken 3 | 1 1 1 . Unknown Exits Taken . | . . . . Scrap Searched . | . . . . Spaces Dug . | . . . . Terrain Destroyed . | . . . . Melee . | . . . . Projectile . | . . . . AOE . | . . . . Terrain Rammed . | . . . . Walls Destroyed . | . . . . Machines Disabled . | . . . . Actions | -11 -10 -10 -10 --------- Run | Scr Mat Min Exi Total 874 | 11 257 183 423 Wait 16 | . . 3 13 Move 769 | 9 226 176 358 Hop . | . . . . Pick Up 3 | . 1 . 2 Fast Attach 8 | . 4 . 4 Attach 7 | 1 2 . 4 Detach 8 | 1 5 . 2 Swap 2 | . 1 . 1 Drop 8 | . 3 . 5 Fire 40 | . 15 3 22 Melee . | . . . . Ram . | . . . . Kick . | . . . . Crush 13 | . . 1 12 Escape Stasis . | . . . . Rewire . | . . . . Trap . | . . . . Miscellaneous . | . . . . Route ------- -11/Scrapyard -10/Materials -10/Mines (discovered 2 exits: *Mat / *Exi) -10/Exiles (discovered 2 exits: *Min x2) History --------- Turn | Location | Event 1 | -11/Scrapyard | Identified exit to Materials 1 | -11/Scrapyard | Discovered exit to Materials (range 3) 14 | -11/Scrapyard | Entered Materials 14 | -10/Materials | Evolved 1 slot: Weapon x1 206 | -10/Materials | Identified exit to Mines 206 | -10/Materials | Discovered exit to Mines (range 16) 401 | -10/Materials | Entered Mines 472 | -10/Mines | Learned 4 Materials zone layouts 481 | -10/Mines | Build established: Hacker-Gunner 533 | -10/Mines | Identified exit to Materials 533 | -10/Mines | Discovered exit to Materials (range 4) 624 | -10/Mines | Learned location of Mines (-9) 689 | -10/Mines | Deemed a non-threat by the Exiles lab entrance 691 | -10/Mines | Identified exit to Exiles 691 | -10/Mines | Discovered exit to Exiles (range 5) 697 | -10/Mines | Entered Exiles 721 | -10/Exiles | Identified exit to Mines 721 | -10/Exiles | Discovered exit to Mines (range 14) 750 | -10/Exiles | Met 8R-AWN 774 | -10/Exiles | Met EX-HEX 837 | -10/Exiles | Met EX-DEC 925 | -10/Exiles | Discovered exit to Mines (range 11) 1006 | -10/Exiles | Met EX-BIN 1096 | -10/Exiles | Aligned with FarCom system 1097 | -10/Exiles | Given EX-Vault access code 1139 | -10/Exiles | Opened EX-Vault 1144 | -10/Exiles | Found Prototype Energy Cannon 1144 | -10/Exiles | Identified Gui. Plasma Cannon 1153 | -10/Exiles | Found Prototype Processor 1153 | -10/Exiles | Identified 0b10 Alert Chip 1199 | -10/Exiles | Warned to stay clear of 0b10 Research branches 1242 | -10/Exiles | Destroyed EX-BIN 1243 | -10/Exiles | Attacked by the Exiles 1345 | -10/Exiles | Core integrity fell below 50% 1354 | -10/Exiles | Core integrity fell below 20% 1362 | -10/Exiles | Destroyed by 8R-AWN with 8R-AWN's Boregun Last Messages --------------- 01346_ HV Slug penetrates Earth. 01346_ Penetrated by HV Slug. 01346_ HV Slug penetrates Earth. 01348_ Penetrated by HV Slug. 01348_ HV Slug penetrates Earth. 01348_ Penetrated by HV Slug. 01357_ Overheating: System interference. 01357_ Gui. Plasma Cannon temporarily disabled. 01357_ Penetrated by HV Slug. 01358_ Power failure, Ion Engine shutdown. 01360_ Penetrated by HV Slug. 01360_ Critical hit (Destroy). 01360_ Particle Cannon destroyed. 01360_ Penetrated by HV Slug. 01360_ Critical hit (Destroy). 01360_ Gui. Plasma Cannon destroyed. 01362_ Penetrated by HV Slug. 01362_ Ion Engine destroyed. 01362_ HV Slug penetrates Wall. 01362_ Penetrated by HV Slug. Map ----- +----------------------------------------------------+ | | | | | | | | | | | | | | | | | | | | | | | | | | | | | ??????????????#########??????????????????????????? | | ??????????????# #???????????????#??????????? | | ??????????????# [ #?????????????? ??????????? | | ??????????????# #????????????# #??????????? | | ??????????????# X#??????????? ????????????? | | ??????????????## ##?????????# #?????????????? | | ??????????????#X #????????? ???????????????? | | ??????????????## #??????## #????????????????? | | ???????????????# #????? ??????????????????? | | ???????????????# ######;;#???????????????????? | | ???????????????# ##" a#???????????????????? | | ???????????????# ##a @ ""#???????????????????? | | ???????????????# % g X""#???????????????????? | | ???????????????# ## """#???????????????????? | | ?????????####??# ##""""""#???????????????????? | | ?????????"""""?# #########???????????????????? | | ????????"""" ## #???????????????????????????? | | ???????#""X" #???????????????????????????? | | ???????#" #???????????????????????????? | | ???????#" ## #???????????????????????????? | | ???????#""""""?# %#?#########?????????????????? | | ????????#"###??# #?#"""""""#?????????????????? | | ???????????????# #?#"""""""#?????????????????? | | ???????????????# #?#"""""""#?????????????????? | | ??????????????## ###"" """"#?????????????????? | | ??????????????#" """"#?????????????????? | | ??????????????#" !!"""#?????????????????? | | ??????????????#" !] =!!"""#?????????????????? | | ??????????????#" ![!!!%"""#?????????????????? | | #######???????#" ! !!!"""#?????????????????? | | """#???????#" *!"""##????????????????? | | "" """#???????## """""????????????????? | | "" #????????# """##????????????????? | | "" #????????#" "X" """"?????????????????? | | "" "#????????#" """ #?????????????????? | | ""#????????#" """""""""#?????????????????? | +----------------------------------------------------+ Best States ------------- Heat Dissipation 35 Energy Generation 10 Energy Capacity 250 Matter Stores 300 Matter Capacity 300 Sight Range 16 Terrain Scan Density 10 Armor Coverage 150 Resistance: KI 35 Resistance: TH 35 Resistance: EX 35 Resistance: EM 35 Resistance: I 35 Resistance: S 35 Resistance: P 35 Weapon Shielding 33 Evasion (%) 55 Recoil Reduction 2 Offensive Hacking 20 Item Schematics ----------------- None Robot Schematics ------------------ None Fabricated ------------ Nothing Alien Tech Used ----------------- None Achievements -------------- None Challenges ------------ None Game ------ Seed RestorationPulseInverter Manual? 0 Play Time 00:10:55 Cumulative 174.2 hours Start 2022.05.27 @ 12:36:01 End 2022.05.27 @ 12:46:54 Sessions 1 Manual Loads 0 Difficulty Explorer Special Mode None Game No. 57 Rogue 0 Adventurer 1 Explorer 56 Win Type - Total 12 Types 6/0/3/3/0/0/0/0/0 Lore% 81 Gallery% 82 Achievement% 68 Wizard Run 0 Options --------- ASCII 0 Keyboard 1 Movement Numpad Keybinds 0 Fullscreen 0 Font 14/Terminus Map View 76x50 Tactical HUD 1 Map Filters BRIGHTNESS(150) Filters NONE Steam 1 RUN: 45678256-20ed-4571-adc0-1ab653f8d4ab